fUSD/lending_fUSD_20251027
["ID","MTS","AMOUNT","RATE_DAILY","PERIOD"]
[392492066,1761559843234,-1692.19592713,0.000434,15]
[392492067,1761559843243,-168.0,0.00043521,2]
[392492068,1761559843252,-153.7181831,0.00043523,120]
[392492069,1761559843262,-500.0,0.00043544,10]
[392492070,1761559843271,-1033.0,0.0004365,30]
[392492071,1761559843280,-1692.19592713,0.0004365,15]
[392492072,1761559843394,-153.7181831,0.0004372,120]
[392492073,1761559843405,-168.0,0.0004373,2]
[392492074,1761559843415,-279.2671,0.00043735,2]
[392492075,1761559843424,-4063.5368,0.00043735,2]
[392492076,1761559843433,-6631.0713,0.00043735,2]
[392492077,1761559843442,-233.9129,0.00043735,2]
[392492078,1761559843451,-168.0,0.00043753,2]
[392492079,1761559843460,-500.0,0.00043802,120]
[392492080,1761559843471,-500.0,0.00043835,120]
[392492081,1761559843480,-500.0,0.00043835,120]
[392492082,1761559843489,-500.0,0.00043835,120]
[392492083,1761559843498,-500.0,0.00043835,120]
[392492084,1761559843508,-500.0,0.00043835,120]
[392492085,1761559843516,-500.0,0.00043835,120]
[392492086,1761559843525,-500.0,0.00043835,120]
[392492087,1761559843534,-500.0,0.00043835,120]
[392492088,1761559843543,-500.0,0.00043835,120]
[392492089,1761559843552,-500.0,0.00043835,120]
[392492090,1761559843563,-500.0,0.00043835,120]
[392492091,1761559843571,-500.0,0.00043835,120]
[392492092,1761559843580,-500.0,0.00043835,120]
[392492093,1761559843589,-500.0,0.00043835,120]
[392492094,1761559843599,-500.0,0.00043835,120]
[392492095,1761559843608,-500.0,0.00043835,120]
[392492096,1761559843617,-500.0,0.00043835,120]
[392492097,1761559843626,-500.0,0.00043835,120]
[392492098,1761559843635,-500.0,0.00043835,120]
[392492099,1761559843644,-217.27,0.00043835,120]
[392492100,1761559843654,-300.0,0.00043836,120]
[392492101,1761559843663,-151.42017802,0.000439,120]
[392492102,1761559843672,-1692.19592713,0.000439,15]
[392492103,1761559843681,-153.7181831,0.00043917,120]
[392492104,1761559843690,-150.0,0.00043918,60]
[392492106,1761559843700,-861.0,0.0004397,60]
[392492107,1761559843709,-152.0,0.00044,120]
[392492108,1761559843718,-194.39,0.00044007,2]
[392492109,1761559843727,-168.0,0.00044071,2]
[392492110,1761559843735,-1033.0,0.000441,30]
[392492111,1761559843744,-153.7181831,0.00044113,120]
[392492112,1761559843753,-1692.19592713,0.0004415,15]
[392492113,1761559843762,-4903.8133314,0.00044268,14]
[392492114,1761559843771,-502.14,0.000443,90]
[392492115,1761559843780,-153.7181831,0.0004431,120]
[392492116,1761559843789,-1692.19592713,0.000444,15]
[392492117,1761559843798,-205.66,0.00044444,30]
[392492118,1761559843807,-150.0,0.000445,30]
[392492119,1761559843816,-400.0,0.000445,16]
[392492120,1761559843825,-42000.0,0.000445,120]
[392492121,1761559843834,-153.7181831,0.00044507,120]
[392492122,1761559843843,-1000.0,0.00044509,2]
[392492123,1761559843852,-1033.0,0.0004455,30]
[392492124,1761559843861,-800.0,0.000446,16]
[392492125,1761559843870,-306.56,0.00044606,30]
[392492126,1761559843879,-150.0,0.00044606,30]
[392492127,1761559843888,-2405.14,0.00044606,30]
[392492128,1761559843900,-300.0,0.00044606,30]
[392492129,1761559843910,-150.0,0.00044606,30]
[392492130,1761559843919,-150.0,0.00044606,30]
[392492131,1761559843930,-150.0,0.00044606,30]
[392492132,1761559843939,-150.0,0.00044606,30]
[392492133,1761559843948,-150.0,0.00044606,30]
[392492134,1761559843957,-300.0,0.00044606,30]
[392492135,1761559843966,-413.9,0.00044606,30]
[392492136,1761559843977,-590.47,0.00044606,30]
[392492137,1761559843986,-476.05,0.00044606,30]
[392492138,1761559843995,-1202.57,0.00044606,30]
[392492139,1761559844004,-476.05,0.00044606,30]
[392492140,1761559844013,-414.74,0.00044606,30]
[392492141,1761559844022,-150.0,0.00044606,30]
[392492142,1761559844031,-915.58,0.00044606,30]
[392492143,1761559844039,-150.0,0.00044606,30]
[392492144,1761559844048,-150.0,0.00044606,30]
[392492145,1761559844057,-241.85,0.00044606,30]
[392492146,1761559844066,-150.0,0.00044606,30]
[392492147,1761559844075,-476.05,0.00044606,30]
[392492148,1761559844085,-414.74,0.00044606,30]
[392492149,1761559844094,-373.06,0.00044609,30]
[392492150,1761559844103,-349.9,0.00044609,30]
[392492151,1761559844112,-150.0,0.00044609,30]
[392492152,1761559844121,-697.12,0.00044609,30]
[392492153,1761559844130,-476.05,0.00044609,30]
[392492154,1761559844140,-414.74,0.00044609,30]
[392492155,1761559844149,-697.12,0.00044609,30]
[392492156,1761559844159,-476.05,0.00044609,30]
[392492157,1761559844167,-150.0,0.00044609,30]
[392492158,1761559844176,-414.74,0.00044609,30]
[392492159,1761559844186,-414.74,0.00044609,30]
[392492160,1761559844195,-150.0,0.00044609,30]
[392492161,1761559844204,-697.12,0.00044609,30]
[392492162,1761559844213,-476.05,0.00044609,30]
[392492163,1761559844223,-476.05,0.00044609,30]
[392492164,1761559844232,-150.0,0.00044609,30]
[392492165,1761559844241,-414.74,0.00044609,30]
[392492166,1761559844251,-697.12,0.00044609,30]
[392492167,1761559844260,-150.0,0.00044609,30]
[392492168,1761559844269,-414.74,0.00044609,30]
[392492169,1761559844278,-476.05,0.00044609,30]
[392492170,1761559844287,-697.12,0.00044609,30]
[392492171,1761559844297,-413.9,0.00044609,30]
[392492172,1761559844307,-697.12,0.00044609,30]
[392492173,1761559844318,-697.12,0.00044609,30]
[392492174,1761559844327,-697.12,0.00044609,30]
[392492175,1761559844337,-267.93,0.00044609,30]
[392492176,1761559844346,-150.0,0.00044629,2]
[392492177,1761559844356,-150.0,0.00044629,2]
[392492178,1761559844365,-820.0,0.00044629,2]
[392492179,1761559844375,-573.0,0.00044629,2]
[392492180,1761559844384,-2055.0,0.00044629,2]
[392492181,1761559844393,-606.0,0.00044629,2]
[392492182,1761559844402,-1313.0,0.00044629,2]
[392492183,1761559844413,-1593.0,0.00044629,2]
[392492184,1761559844421,-1270.0,0.00044629,2]
[392492185,1761559844430,-818.0,0.00044629,2]
[392492186,1761559844439,-1692.19592713,0.0004465,15]
[392492187,1761559844448,-1200.0,0.000447,16]
[392492188,1761559844458,-153.7181831,0.00044703,120]
[392492189,1761559844467,-67233.80381812,0.0004476,2]
[392492190,1761559844476,-832.30777295,0.00044792,2]
[392492191,1761559844485,-2500.0,0.00044795,2]
[392492192,1761559844494,-1600.0,0.000448,16]
[392492193,1761559844503,-1038.98552268,0.0004488,17]
[392492194,1761559844512,-188.17110435,0.0004488,28]
[392492195,1761559844521,-5000.0,0.0004489,120]
[392492196,1761559844530,-1653.45,0.000449,120]
[392492197,1761559844539,-600.0,0.000449,16]
[392492198,1761559844548,-600.0,0.000449,16]
[392492199,1761559844557,-600.0,0.000449,16]
[392492200,1761559844566,-600.0,0.000449,16]
[392492201,1761559844575,-600.0,0.000449,16]
[392492202,1761559844584,-600.0,0.000449,16]
[392492203,1761559844593,-600.0,0.000449,16]
[392492204,1761559844602,-600.0,0.000449,16]
[392492205,1761559844611,-600.0,0.000449,32]
[392492206,1761559844619,-539.92304968,0.000449,17]
[392492207,1761559844628,-162.26600295,0.000449,20]
[392492208,1761559844638,-300.0,0.000449,24]
[392492209,1761559844647,-300.0,0.000449,24]
[392492210,1761559844656,-300.0,0.000449,24]
[392492211,1761559844665,-300.0,0.000449,24]
[392492212,1761559844674,-193.51,0.000449,24]
[392492213,1761559844684,-600.0,0.000449,16]
[392492214,1761559844694,-600.0,0.000449,16]
[392492215,1761559844703,-600.0,0.000449,16]
[392492216,1761559844712,-600.0,0.000449,16]
[392492217,1761559844722,-600.0,0.000449,16]
[392492218,1761559844731,-600.0,0.000449,16]
[392492219,1761559844740,-600.0,0.000449,16]
[392492220,1761559844749,-600.0,0.000449,16]
[392492221,1761559844758,-600.0,0.000449,32]
[392492222,1761559844767,-2000.0,0.000449,16]
[392492223,1761559844776,-360.8849,0.000449,120]
[392492224,1761559844785,-153.7181831,0.000449,120]
[392492225,1761559844795,-1692.19592713,0.000449,15]
[392492226,1761559844805,-2160.97773152,0.000449,2]
[392492227,1761559844814,-500.0,0.00044902,120]
[392492228,1761559844823,-2000.0,0.00044902,120]
[392492229,1761559844832,-500.0,0.00044902,120]
[392492230,1761559844841,-500.0,0.00044902,120]
[392492231,1761559844850,-200.0,0.00044902,120]
[392492232,1761559844859,-175509.329404,0.0004497,3]
[392492233,1761559844869,-35291.893345,0.0004497,3]
[392492234,1761559844878,-151.58346849,0.00044973,10]
[392492235,1761559844887,-541.88128914,0.00044973,8]
[392492236,1761559844899,-500.0,0.00044973,10]
[392492237,1761559844909,-1515.43451734,0.00044979,60]
[392492238,1761559844919,-15955.3935822,0.0004498,3]
[392492239,1761559844928,-11763.9644483,0.0004498,3]
[392492240,1761559844937,-162.90586814,0.00044986,30]
[392492241,1761559844947,-159.51751846,0.00044986,30]
[392492242,1761559844956,-508.88606453,0.00044989,120]
[392492243,1761559844965,-11763.9644483,0.0004499,3]
[392492244,1761559844976,-191464.722986,0.0004499,3]
[392492245,1761559844985,-329391.004553,0.0004499,3]
[392492246,1761559844994,-150.92,0.0004499,2]
[392492247,1761559845003,-421.578,0.0004499,30]
[392492248,1761559845012,-636.0,0.0004499,30]
[392492249,1761559845021,-999.0,0.00044999,120]
[392492250,1761559845030,-7903.87255301,0.00045,44]
[392492251,1761559845039,-276030.798,0.00045,120]
[392492252,1761559845048,-92958.35176378,0.00045,120]
[392492253,1761559845063,-2912.37108585,0.00045,120]
[392492256,1761559846211,-150.0,0.00044606,30]
[392492257,1761559846220,-414.74,0.00044606,30]
[392492258,1761559846229,-476.05,0.00044606,30]
[392492259,1761559846238,-17.29581381,0.00045,120]
[392492260,1761559846422,-652.41,0.00045,120]
[392492264,1761559925766,800.0,0.00026986,120]
[392492266,1761560157362,300.0,0.0003,120]
[392492269,1761560226905,471.42,0.00013699,2]
[392492270,1761560238436,301.0,0.0003,120]
[392492271,1761560242312,-306.10168251,0.00020187,2]
[392492272,1761560244914,-165.31831749,0.00020187,2]
[392492273,1761560244935,-13.81369842,0.00022206,2]
[392492274,1761560247272,-181.18630158,0.00022206,2]
[392492275,1761560247295,-191.81674096,0.00022559,2]
[392492278,1761560271285,297.0,0.00037172,120]
[392492279,1761560287986,-3.18325904,0.00022559,2]
[392492280,1761560288009,-195.0,0.00023152,2]
[392492281,1761560288030,-0.36125152,0.00023745,2]
[392492282,1761560293281,2040.02567427,0.00037172,120]
[392492284,1761560707819,3176.897862,0.00015,2]
[392492285,1761560707854,5000.0,0.00015,2]
[392492286,1761560707898,5000.0,0.00015,2]
[392492287,1761560707951,324415.44871284,0.00015,2]
[392492288,1761560708247,2154.44067687,0.00037173,90]
[392492289,1761560710649,2088.49138892,0.00037173,120]
[392492290,1761560711644,491.14417397,0.00037173,60]
[392492291,1761560712195,450.37080953,0.00037173,120]
[392492292,1761560712508,683.84956607,0.00037173,91]
[392492293,1761560716057,889.43199451,0.00037173,120]
[392492294,1761560719579,249.23663987,0.00037173,120]
[392492295,1761560723405,313.98286472,0.00037173,120]
[392492296,1761560724981,204.24943464,0.00037173,120]
[392492297,1761560726467,535.43369531,0.0003013,120]
[392492298,1761560731638,202.39597153,0.00037173,120]
[392492299,1761560731804,1726.54028476,0.0002,120]
[392492300,1761560746574,487.84991491,0.00037173,120]
[392492301,1761560756885,918.99504467,0.00037173,120]
[392492302,1761560760741,699.39019183,0.00037173,90]
[392492303,1761560762490,661.53482833,8e-05,2]
[392492304,1761560763158,588.90037131,0.00037173,120]
[392492305,1761560764694,906.0617699,0.00015,2]
[392492306,1761560764725,1066.47391804,0.00037173,120]
[392492307,1761560764899,372.58249222,0.00037173,120]
[392492308,1761560765370,187.07281921,0.00037173,120]
[392492309,1761560766782,367.72069841,0.00011,2]
[392492310,1761560767562,267.33148148,0.00037173,120]
[392492311,1761560767835,11696.203797,7.945e-05,2]
[392492312,1761560769067,633.55010487,0.00037173,60]
[392492313,1761560769492,248.8282758,0.00037173,120]
[392492314,1761560772578,449.81800078,0.00037173,120]
[392492315,1761560772979,387.93250824,0.00037173,60]
[392492316,1761560773893,237.50157441,0.00037173,120]
[392492317,1761560775677,592.23820098,0.00037173,120]
[392492318,1761560786849,697.80200427,0.00037173,120]
[392492319,1761560789490,2026.88525355,0.00015,2]
[392492320,1761560790314,255.35015953,0.00037173,60]
[392492321,1761560818447,5000.00307689,0.000162,5]
[392492322,1761560819076,867.90658939,0.00037173,120]
[392492323,1761560819790,-320.86798409,0.0001614,2]
[392492324,1761560822942,-196.19060538,0.0001614,2]
[392492325,1761560825155,-187.7485493,0.0001614,2]
[392492327,1761560830068,6854.15728324,0.00015,2]
[392492328,1761560830667,1287.66944775,0.0002301,120]
[392492329,1761560831189,-140.91286123,0.0001614,2]
[392492330,1761560831212,-128.33858947,0.00016989,2]
[392492331,1761560832517,391.5075891,0.00037173,120]
[392492332,1761560833953,-157.85963175,0.00016989,2]
[392492333,1761560837093,-250.0,0.00016989,2]
[392492334,1761560839939,-160.73,0.00016989,2]
[392492335,1761560839986,182.44888164,0.0001305,2]
[392492336,1761560841115,-148.79177878,0.00016989,2]
[392492337,1761560841136,-845.72,0.00017839,2]
[392492338,1761560841158,-290.82073815,0.00018688,2]
[392492339,1761560851834,351.89180021,0.00037173,120]
[392492340,1761560852227,159.78450238,0.00037173,120]
[392492341,1761560853107,1341.94755096,0.00037173,120]
[392492342,1761560857239,407.66161659,0.00037173,120]
[392492343,1761560857272,-190.48946403,0.00018688,2]
[392492344,1761560858203,347.17094551,0.00037173,120]
[392492345,1761560860344,-240.14919522,0.00018688,2]
[392492346,1761560862374,1202.34478622,0.00037173,120]
[392492347,1761560862624,-124.2606026,0.00018688,2]
[392492348,1761560862648,-56.09815874,0.00019538,2]
[392492349,1761560863916,617.1653196,0.00037173,120]
[392492350,1761560864554,168.46346101,0.00037173,120]
[392492351,1761560864802,665.05259295,0.00037173,120]
[392492352,1761560864832,40756.71275889,0.0002,5]
[392492353,1761560865021,-164.00871101,0.00019538,2]
[392492354,1761560865506,323.60042972,0.00037173,120]
[392492355,1761560867624,1073.71624418,0.00027,120]
[392492356,1761560867795,-184.90908488,0.00019538,2]
[392492357,1761560868460,225.27598144,0.00037173,120]
[392492358,1761560870006,-181.88716151,0.00019538,2]
[392492359,1761560870824,1348.4976548,0.00037173,120]
[392492360,1761560875433,-255.43329496,0.00018,2]
[392492361,1761560877326,497.4867277,0.00037173,120]
[392492362,1761560877613,-30.46753437,0.00018,2]
[392492363,1761560877645,-258.81688386,0.00019538,2]
[392492364,1761560877676,-52.56743326,0.00020387,2]
[392492365,1761560878322,3148109.17466013,0.00015,2]
[392492366,1761560879130,-279.46189932,0.00020387,2]
[392492367,1761560880939,881.50853321,0.00037173,120]
[392492368,1761560884087,540.90307711,0.00037173,60]
[392492369,1761560884298,-184.73028565,0.00020387,2]
[392492370,1761560885901,1084.20446884,0.00037173,120]
[392492371,1761560887112,-222.29365977,0.00020387,2]
[392492372,1761560899072,909.96944222,0.00037173,120]
[392492373,1761560905347,498.42266515,0.00037173,60]
[392492374,1761560906873,1061.29127385,0.00037173,120]
[392492375,1761560907142,429.28288011,0.00037173,120]
[392492376,1761560908215,1891.28208581,0.00037173,80]
[392492377,1761560909390,224.3445963,0.00037173,120]
[392492378,1761560910242,687.88739616,0.00025,120]
[392492379,1761560910526,3765.26004457,0.00037173,60]
[392492380,1761560910626,432.74922721,0.00037173,120]
[392492381,1761560911161,722.44402779,0.00027,120]
[392492382,1761560911407,1077.25066439,0.00037173,120]
[392492383,1761560911761,539.83491943,0.00037173,120]
[392492384,1761560911852,291.9439812,0.00037173,120]
[392492385,1761560913560,756.70743366,0.00037173,120]
[392492386,1761560914075,799.05326428,0.000246,120]
[392492387,1761560914280,756.0,0.00037173,120]
[392492388,1761560915159,1182.64424384,0.00037173,120]
[392492389,1761560916304,903.39368338,0.000199,120]
[392492390,1761560917383,507.97443226,0.00037173,120]
[392492391,1761560917669,907.32860113,0.00037173,120]
[392492392,1761560917917,1145.69126304,0.00037173,120]
[392492394,1761560918836,341.74,0.0002,120]
[392492395,1761560918967,461.68619568,0.00037173,120]
[392492396,1761560920140,1025.18468795,0.00037173,120]
[392492397,1761560921687,498.0,0.0003,120]
[392492398,1761560921949,240.01956267,0.00037173,120]
[392492399,1761560922046,445.62872057,0.00022,120]
[392492400,1761560922101,1372.36794349,0.00037173,120]
[392492401,1761560922893,1136.50139084,0.00037173,60]
[392492402,1761560923851,905.44285989,0.00037173,120]
[392492403,1761560924908,194.30420702,0.00037173,120]
[392492404,1761560924947,395.37209652,0.00037173,120]
[392492405,1761560925412,644.28912485,0.0003,120]
[392492406,1761560925446,2885.39087971,0.00037173,120]
[392492407,1761560925593,308.76121276,0.0002465,120]
[392492408,1761560925705,342.83141582,0.00037173,120]
[392492409,1761560925975,1816.23264649,0.00015,2]
[392492410,1761560926008,5003.01185755,0.0001,2]
[392492411,1761560926374,1147.87315433,0.00037173,120]
[392492412,1761560926870,1482.9173128,0.00037173,60]
[392492413,1761560927016,194.06942303,0.00037173,120]
[392492414,1761560927049,365.79251231,0.00037173,120]
[392492415,1761560927148,1181.74284376,0.000271,120]
[392492416,1761560927177,215.00561974,0.00025,120]
[392492417,1761560927732,352.91156762,0.00037173,120]
[392492418,1761560928298,1509.51787625,0.00037173,120]
[392492419,1761560928329,500.0,0.00037173,120]
[392492420,1761560928391,985.999995,0.0003,120]
[392492421,1761560928556,735.0913336,0.00037173,120]
[392492422,1761560928794,184.3060794,0.00037173,120]
[392492423,1761560929151,1352.00111136,0.00037173,120]
[392492428,1761560950141,-106.666722,0.00020387,2]
[392492429,1761560950165,-845.72,0.00021237,2]
[392492430,1761560950186,-7587.93487245,0.000215,2]
[392492431,1761560950207,-263.25325015,0.00021986,2]
[392492432,1761560950229,-845.72,0.00022086,2]
[392492433,1761560950250,-300.0,0.00022425,2]
[392492434,1761560950272,-287.83052914,0.00022426,2]
[392492435,1761560950293,-195.0,0.00022426,2]
[392492436,1761560950314,-807.569817,0.00022819,2]
[392492437,1761560950336,-845.72,0.00022935,2]
[392492438,1761560950360,-845.72,0.00023785,2]
[392492439,1761560950380,-166.66666668,0.00023984,2]
[392492440,1761560950402,-195.0,0.00024084,2]
[392492441,1761560950423,-253.05580189,0.00024084,2]
[392492442,1761560950445,-420.0,0.00024358,2]
[392492443,1761560950466,-845.72,0.00024634,2]
[392492444,1761560950486,-181.95970556,0.00024905,2]
[392492445,1761560950507,-500.0,0.00024932,2]
[392492446,1761560950528,-182.13222298,0.00024932,2]
[392492447,1761560950550,-457.0,0.00024999,2]
[392492448,1761560950571,-404.70008503,0.00025,2]
[392492449,1761560950595,-1292.02925255,0.00025,2]
[392492450,1761560950625,-360.0,0.00025,2]
[392492451,1761560950645,-934.76968982,0.00025,2]
[392492452,1761560950665,-1209.43719778,0.00025,2]
[392492453,1761560964095,-3937.50864869,0.00025,2]
[392492454,1761560964115,-812.85789531,0.00025,2]
[392492455,1761560969376,-236.95693137,0.00025,2]
[392492456,1761560969396,-165.00664924,0.00025,2]
[392492457,1761560969418,-845.72,0.00025484,2]
[392492458,1761560969437,-3181.47397184,0.00025879,2]
[392492459,1761560969456,-151.15918509,0.00026,2]
[392492460,1761560969478,-845.72,0.00026333,2]
[392492461,1761560969500,-195.0,0.00026368,2]
[392492462,1761560969521,-250.0,0.00026368,2]
[392492463,1761560969543,-195.0,0.00026368,2]
[392492464,1761560969562,-864.91074089,0.000264,2]
[392492465,1761560969581,-587.0,0.00026457,2]
[392492466,1761560969601,-195.0,0.00026492,2]
[392492467,1761560969621,-263.25325015,0.00026658,2]
[392492468,1761560969640,-471.42,0.00026676,2]
[392492469,1761560969664,-845.72,0.00027183,2]
[392492470,1761560969683,-182.13222298,0.00027425,2]
[392492471,1761560969703,-845.72,0.00028032,2]
[392492472,1761560969725,-823.0,0.00028738,2]
[392492473,1761560969747,-166.47,0.00028829,2]
[392492474,1761560969766,-150.0,0.00028829,2]
[392492475,1761560969787,-845.72,0.00028882,2]
[392492476,1761560969809,-516.49607504,0.00029336,2]
[392492477,1761560969834,-845.72,0.00029731,2]
[392492478,1761560969853,-198.54451056,0.00029989,2]
[392492479,1761560969876,-500.0,0.00029989,2]
[392492480,1761560969895,-384.44882869,0.00029989,2]
[392492481,1761560969914,-500.0,0.00029989,2]
[392492482,1761560969937,-500.0,0.00029989,2]
[392492483,1761560969959,-500.0,0.00029989,2]
[392492484,1761560969979,-170.80410494,0.00029989,2]
[392492485,1761560970001,-500.0,0.00029989,2]
[392492486,1761560970023,-174.33095599,0.00029989,2]
[392492487,1761560970046,-500.0,0.00029989,2]
[392492488,1761560970068,-500.0,0.00029989,2]
[392492489,1761560970090,-500.0,0.00029989,2]
[392492490,1761560970112,-500.0,0.00029989,2]
[392492491,1761560970133,-500.0,0.00029989,2]
[392492492,1761560970152,-5000.0,0.0002999,2]
[392492493,1761560970172,-845.72,0.00030581,2]
[392492494,1761560970192,-500.0,0.0003074,2]
[392492495,1761560970210,-39690.60401695,0.0003095,2]
[392492496,1761560970230,-1152.0,0.00031215,2]
[392492497,1761560970252,-263.25325015,0.0003133,2]
[392492498,1761560970273,-845.72,0.0003143,2]
[392492499,1761560970293,-200.0,0.00032,120]
[392492500,1761560970313,-845.72,0.00032279,2]
[392492501,1761560970333,-181.01,0.00032332,2]
[392492512,1761561032370,-150.0,0.00033165,2]
[392492513,1761561032380,-255.97665024,0.00033165,120]
[392492514,1761561032452,-609.45350335,0.00033165,120]
[392492515,1761561032462,-195.0,0.00033165,120]
[392492516,1761561032472,-69.66649734,0.00033165,120]
[392492523,1761561032760,-230.33350266,0.00033165,120]
[392492524,1761561032771,-471.42,0.00033165,2]
[392492525,1761561032780,-182.13222298,0.00033165,2]
[392492526,1761561032790,-483.89689145,0.000332,5]
[392492527,1761561032801,-195.0,0.00033432,120]
[392492528,1761561032811,-300.0,0.00033432,120]
[392492529,1761561032820,-300.0,0.00033432,120]
[392492530,1761561032829,-300.0,0.00033432,120]
[392492531,1761561032839,-200.0,0.00034,120]
[392492532,1761561032848,-1040.19051355,0.00034499,30]
[392492533,1761561032857,-413.37507756,0.00035616,120]
[392492534,1761561032866,-325.7,0.00035995,2]
[392492535,1761561032875,-400.0,0.00035999,2]
[392492536,1761561032885,-519.37010622,0.00035999,15]
[392492537,1761561032895,-200.0,0.00036,120]
[392492538,1761561032904,-5494.02043564,0.00036,2]
[392492587,1761561040347,-325.70091321,0.00036,2]
[392492588,1761561040457,-472.01634291,0.00036,2]
[392492589,1761561040581,-22537.42213045,0.00036,2]
[392492590,1761561040731,-18389.41486159,0.00036,2]
[392492591,1761561040744,-1008.0,0.00036021,2]
[392492592,1761561040756,-240.90110063,0.00036035,2]
[392492593,1761561040768,-300.0,0.000361,13]
[392492594,1761561040781,-600.0,0.000362,13]
[392492595,1761561040793,-1000.0,0.000363,13]
[392492596,1761561040805,-1300.0,0.000364,13]
[392492597,1761561040817,-250.0,0.00036482,2]
[392492598,1761561040831,-195.0,0.00036482,120]
[392492599,1761561040845,-300.0,0.00036482,120]
[392492600,1761561040856,-1700.0,0.000365,13]
[392492601,1761561040868,-300.0,0.000366,13]
[392492602,1761561040880,-300.0,0.000367,13]
[392492603,1761561040892,-300.0,0.000368,13]
[392492604,1761561040904,-3135.0,0.00036853,2]
[392492605,1761561040916,-300.0,0.000369,13]
[392492606,1761561040927,-1294.45099257,0.00036985,4]
[392492607,1761561040939,-652.41,0.00036999,2]
[392492608,1761561040951,-1000.0,0.00037073,2]
[392492610,1761561040963,-4063.5368,0.00037073,2]
[392492611,1761561040975,-2500.0,0.00037073,2]
[392492612,1761561040986,-5076.58778139,0.00037073,2]
[392492613,1761561040998,-1038.98552268,0.00037073,9]
[392492614,1761561041011,-727.07819169,0.00037073,2]
[392492615,1761561041023,-777.97261834,0.00037073,2]
[392492616,1761561041036,-6482.93319454,0.00037073,2]
[392492617,1761561041048,-208.19864457,0.00037073,2]
[392492618,1761561041061,-10798.75903338,0.00037073,2]
[392492619,1761561041074,-609.73746248,0.000371,3]
[392492620,1761561041086,-150.92,0.00037163,2]
[392492621,1761561041099,-171.46875,0.00037171,2]
[392492622,1761561041111,-4098.06509268,0.00037171,7]
[392492623,1761561041123,-407.24963729,0.00037172,15]
[392492624,1761561041134,-274.58582254,0.00037172,15]
[392492625,1761561041146,-500.0,0.00037172,15]
[392492626,1761561041157,-500.0,0.00037172,15]
[392492627,1761561041169,-215.80303882,0.00037172,15]
[392492628,1761561041181,-500.0,0.00037172,15]
[392492629,1761561041193,-597.02618753,0.00037173,5]
[392492630,1761561041205,-7903.87255301,0.00037173,31]
[392492631,1761561041217,-1349.85490288,0.00037173,30]
[392492632,1761561041230,-399.12513623,0.00037173,30]
[392492633,1761561041241,-297.99486306,0.00037173,30]
[392492634,1761561041251,-1381743.00153819,0.00037173,30]
[392492635,1761561041264,-6957.54013537,0.00037173,30]
[392492636,1761561041276,-333.50384,0.00037173,30]
[392492654,1761561046346,-564.51331305,0.00037073,2]
[392492655,1761561046357,-441.48668695,0.00037173,30]
[392492656,1761561046379,-60.26097985,0.00037173,30]
[392492657,1761561061877,742.45,0.0003,7]
[392492658,1761561080677,916.29,0.00031507,120]
[392492659,1761561186658,874.1538604,0.00037173,120]
[392492660,1761561255629,1668.19907,0.00037195,120]
[392492662,1761561363232,4517289.04529011,0.00031507,120]
[392492663,1761561436132,500.0,0.00012,2]
[392492664,1761561436554,500.0,0.00012,2]
[392492665,1761561436791,500.0,0.00012,2]
[392492666,1761561436916,600.0,0.00012,2]